{"text_format":"1","workbook":"xlsx","n_sheets":11,"sheets":["Guía","Perfil","Glosario","1. General","2. Mercado","3. Desarrollo","4. Integracion","5. Experimentacion","6. Seguridad","7. Produccion","RESULTADOS"],"not_rendered":{"charts":0,"images":4,"macros":1,"external_links":0,"defined_names":110,"comments":0,"pivot_tables":0},"unopened":[],"bounds":{"document_bytes":16777216,"sheet_cells":100000,"rows_first":2000,"rows_last":500,"rows_between":2000,"halvings":0,"cell_chars":16384,"cell_head_chars":4096},"cells_cut":0,"cells_raw":0,"read":"whole","date_system":"1900"}

{"sheet":"Guía","index":0,"n_rows":23,"n_cols":5,"rows_kept":23,"cut":false,"hidden":false,"merged":[[22,4,22,6],[19,4,19,6],[14,4,14,6],[4,1,4,6],[3,1,3,6],[9,1,9,6],[15,1,16,1],[13,1,14,1],[5,1,5,6],[13,4,13,6],[12,4,12,6],[15,4,15,6],[16,2,17,2],[6,1,6,6],[7,1,7,6],[11,4,11,6],[17,1,18,1],[18,4,18,6],[20,2,21,2],[20,3,21,3],[20,4,21,6],[19,1,21,1],[16,4,17,6],[16,3,17,3]]}
[]
[null,"Herramienta de estimación de grado de desarrollo de la tecnología (nivel TRL)"]
[]
[null,"Guía de uso de la herramienta"]
[null,"Esta herramienta ha sido adaptada para ayudar a determinar el grado de desarrollo de soluciones tecnológicas innovadoras mediante el uso de la metodología TRL (Technology Readiness Level). Se basa en los sistemas desarrollados por la NASA, el Departamento de Defensa de Estados Unidos,  y la Autoridad de Investigación y Desarrollo de Energía del Estado de Nueva York. Respondiendo a una serie de cuestiones (sí o no), la herramienta determinará el nivel TRL apropiado para un desarrollo tecnológico concreto. En la parte inferior de esta página se muestra la descripción de cada uno de los niveles TRL.  "]
[null,"Para empezar con el uso de esta herramienta, completa cada una de las siete secciones disponibles (General,...) usando los botones que se facilitan al comienzo de cada ventana o directamente haciendo click en las solapas de más abajo. Debe responder a cada cuestión con un \"sí\" o un \"no\", utilizando los cuadros de opción disponibles.  Si duda en la respuesta para una cuestión particular o no lo tiene claro, marque esa cuestión con un \"no\". Si la cuestión no es aplicable a su tecnología, responda con un \"sí\"."]
[null,"Una vez completadas las 7 secciones, puede hacer clic en \"RESULTADOS\" para ver el análisis de resultados de sus respuestas. En esa misma ventana podrá guardar sus resultados en un documento en formato pdf."]
[]
[]
[null,"Para continuar con la herramienta, haga clic aquí: "]
[]
[null,"Nivel relativo de la tecnología","Grado de desarrollo de la tecnología (TRL)","Definición TRL ","Descripción"]
[null,"Funcionamiento del sistema","TRL 9","El sistema real opera en toda la gama de condiciones esperadas","La tecnología está en su forma final y opera bajo el rango total de condiciones de funcionamiento. Los ejemplos incluyen el uso del sistema real con la gama completa de resultados concretos de las pruebas con la máxima fiabilidad."]
[null,"Puesta en marcha del sistema","TRL 8","Sistema real completado y validado mediante test y demostración","Se ha probado que la tecnología funciona en su formato final y bajo las condiciones esperadas. En casi todos los casos, esta TRL representa la finalización del verdadero sistema desarrollado. Los ejemplos incluyen el testeo en el desarrollo y la evaluación del sistema con el gasto real en los test a plena carga. La información de apoyo incluye procedimientos operacionales que son prácticamente completos. Una revisión operacional de la preparación de la tecnología ha sido completada con éxito antes del comienzo de las pruebas en caliente."]
[null,null,"TRL 7","A gran escala, sistema similar (prototipo) probado en un entorno relevante","Este representa un paso adelante desde TRL 6, lo que requiere la demostración de un prototipo real del sistema en un entorno relevante. Los ejemplos incluyen pruebas de campo a gran escala del prototipo.  La información de apoyo incluye los resultados de las pruebas a gran escala y el análisis de las diferencias entre el entorno de prueba y el análisis de lo que significan los resultados experimentales para el sistema/entorno final funcionando. El diseño final está prácticamente completado."]
[null,"Demostración de la tecnología","TRL 6","A nivel de ingeniería / escala piloto, validación del sistema similar (prototipo) en un entorno relevante","Los modelos o prototipos de la fase de ingeniería están probados en un entorno relevante. Esto representa un paso importante en la demostración de desarrollo de una tecnología. Los ejemplos incluyen pruebas de un sistema de prototipo en la fase de ingeniería con una gama de estímulos. La información de apoyo incluye los resultados de las pruebas de la fase de ingeniería y el análisis de las diferencias entre la fase de ingeniería y el sistema/entorno prototipo, y el análisis de lo que significan los resultados experimentales para un  sistema/entorno final. En el TRL6 comienza el verdadero desarrollo de ingeniería de la tecnología como un sistema operativo. La principal diferencia entre TRL5 y 6 es el paso hacia adelante desde el laboratorio a la fase de ingeniería y la determinación de los factores de escala que permitirán el diseño del sistema operativo. El prototipo debe ser capaz de realizar todas las funciones que necesitará el sistema operativo. El entorno operativo para la prueba debe casi representar el entorno de funcionamiento real."]
[null,null,"TRL 5","A nivel de laboratorio, validación del sistema similar (prototipo) en un entorno relevante","Los componentes tecnológicos básicos se integran de manera que la configuración del sistema es similar al de aplicación final en casi todos los aspectos. Los ejemplos incluyen una prueba de mayor fiabilidad; el sistema de la fase de laboratorio se ha probado en un entorno simulado con una serie de datos/elementos de entrada y resultados concretos. La información de apoyo incluye los resultados de las pruebas a escala de laboratorio, el análisis de las diferencias entre el laboratorio y un sistema/entorno de operación final y el análisis de lo que significan los resultados experimentales para el sistema/entorno de operación final. La principal diferencia entre TRL4 y TRL5 es el aumento en la fiabilidad del sistema y en el ambiente de aplicación real. El sistema probado es casi prototipal."]
[null,"Desarrollo de la tecnología"]
[null,null,"TRL 4","Validación de componentes y/o sistema en el laboratorio","Los componentes tecnológicos básicos son integrados para establecer que las piezas trabajarán juntas. Esto es relativamente de baja fiabilidad en comparación con el sistema final. Los ejemplos incluyen la integración de hardware ad hoc en un laboratorio y las pruebas con un rango de estimulantes y pruebas a pequeña escala sobre residuos/pérdidas reales. La información de apoyo incluye los componentes experimentales, y los resultados de las pruebas experimentales difieren de los objetivos esperados de rendimiento del sistema. TRL 4-6 representa el puente desde la investigación científca a la fase de ingeniería. TRL 4 es el primer paso para determinar si los componentes individuales trabajarán en conjunto como un sistema. El sistema del laboratorio, probablemente, será una mezcla de equipos disponibles y un par de componentes de propósito especial que pueden requerir un manejo especial, calibración o alineación, para conseguir que funcionen."]
[null,"Investigación para probar su viabilidad","TRL 3","Función crítica analítica y experimental y/o prueba característica de concepto","Se inicia la investigación y desarrollo (I+D) activo. Esto incluye estudios analíticos y estudios a escala de laboratorio para validar físicamente las predicciones analíticas de los elementos separados de la tecnología. Los ejemplos incluyen componentes que aún no están integrados o pruebas representativas con estimulantes. La información de apoyo incluye resultados de test de laboratorio realizados para medir los parámetros de interés y la comparación de las predicciones analíticas para los subsistemas críticos. En TRL 3, el trabajo ha ido más allá de la fase de papel para el trabajo experimental que verifica que el concepto funciona como se esperaba con los estimulantes. Los componentes de la tecnología son validados, pero no hay un intento de integrar los componentes en un sistema completo. Modelado y simulación se pueden utilizar para complementar experimentos físicos."]
[null,null,"TRL 2","Concepto de tecnología y/o aplicación formuladas","Una vez que los principios básicos  han sido observados, se pueden desarrollar las aplicaciones prácticas. Las aplicaciones son especulativas y puede haber o no prueba o análisis detallado que apoye estas asunciones. Los ejemplos todavía se limitan a estudios analíticos. La información de apoyo incluye publicaciones u otras referencias que describen la aplicación que está siendo considerada y que proporcionan un análisis para apoyar el concepto. La mayor parte del trabajo es analítico o estudios en papel con énfasis en comprender lo mejor posible el aspecto  científico. El trabajo experimental se ha diseñado para corroborar las observaciones científicas básicas efectuadas durante el trabajo en el TRL 1."]
[]
[null,"Investigación básica de tecnología","TRL 1","Principios básicos observados y puestos en conocimiento","Este es el nivel más bajo de desarrollo de la tecnología. La investigación científica comienza a ser trasladada a I+D aplicada. Los ejemplos podrían incluir estudios en papel de alguna de las propiedades básicas de la tecnología o trabajo experimental consistente principalmente en observaciones del mundo físico. La información de apoyo incluye la investigación publicada u otras referencias que identifiquen los principios que subyacen a la tecnología."]

{"sheet":"Perfil","index":1,"n_rows":16,"n_cols":2,"rows_kept":16,"cut":false,"hidden":false,"merged":[[15,1,15,5],[3,1,3,5],[5,2,5,4],[7,2,7,4],[11,2,11,4],[13,2,13,4],[9,2,9,4]]}
[]
[]
[]
[null,"Perfil de la tecnología"]
[]
[null,"Investigador "]
[]
[null,"Grupo I+D / Centro I+D"]
[]
[null,"Teléf. de contacto"]
[]
[null,"E-mail"]
[]
[null,"Breve descripción de la tecnología                        (3 - 4 frases)"]
[]
[null,"Para comenzar con la herramienta, haz click:"]

{"sheet":"Glosario","index":2,"n_rows":23,"n_cols":6,"rows_kept":23,"cut":false,"hidden":false,"merged":[[23,3,23,7],[16,5,16,6],[17,5,17,6],[19,5,19,6],[1,3,2,4],[1,5,2,7],[4,3,4,7],[13,5,13,6],[14,5,14,6],[20,5,20,6],[11,5,11,6],[21,5,21,6],[22,5,22,6],[18,5,18,6],[8,5,8,6],[10,5,10,6],[15,5,15,6],[5,5,5,6],[6,5,6,6],[7,5,7,6],[9,5,9,6],[12,5,12,6]]}
[]
[null,null,null,"Volver a:"]
[]
[]
[null,null,null,"GLOSARIO"]
[null,null,null,null,"PI","Propiedad industrial/intelectual, referidos a posibles derechos en exclusiva para la explotación comercial del ámbito protegido"]
[null,null,null,null,"Experimentación a escala ingenieril","Fase de primera experimentación en el que el proceso o el sistema completo se prueba bajos condiciones simuladas y podrá proporcionar datos de desempeño aproximados. "]
[null,null,null,null,"Requisitos de equipamiento","Comprensión general del tipo de equipamiento que será necesario para producir el servicio/producto o desarrollar el proceso"]
[null,null,null,null,"Compatibilidad funcional","Especificaciones físicas, funcionales y de desemepeño que identifican unívocamente a un componente/sub-sistema/proceso/... y permite su interoperabilidad en un sistema"]
[null,null,null,null,"Documento formal de requisitos del sistema","Pone el producto final en su contexto, y describe cómo sería el producto final. Incluye la lista formal de los requisitos. Los requisitos incluyen descripciones de las propiedades del sistema, especificaciones de cómo debe funcionar el sistema, y las restricciones impuestas al proceso de desarrollo. En general, los requisitos son declaraciones de lo que un sistema debe hacer, más allá de la forma en que debe hacerlo."]
[null,null,null,null,"Experimentación a escala de laboratorio","Experimentaciones muy iniciales del sistema, de sus componentes, fases o materiales utilizando equipamiento de laboratorio.  El objetivo de esta fase es testear cómo la tecnología o el sistema responde bajo condiciones simuladas y servir como base para siguientes fases de experimentación a escala ingenieril."]
[null,null,null,null,"Oportunidad de mercado","Una necesidad identificada o tendencia de la demanda con la que la solución tecnológica puede alinearse para satisfacerla"]
[null,null,null,null,"Límites operaciones","Valores (del tipo de watios amperios, frecuencia, temperatura...) dentro de unos criterios delimitados operativos para una configuración de la solución que aseguren su funcionamiento con unos niveles de calidad óptimos"]
[null,null,null,null,"Nivel operativo máximo","Asegura que todos los últimos detalles requeridos para el desarrollo del producto se han completado o existe un plan para hacerlo. También se asegura que todos los deliverables asociados con el servicio/producto están disponibles."]
[null,null,null,null,"Reivindicaciones de patente","Descripción de la extensión de la protección pedida en una solicitud de patente"]
[null,null,null,null,"Prueba de concepto","Un prototipo en fases iniciales del proyecto cuyo objetivo es verificar que la viabilidad técnica es posible y que sus posibles funcionalidades tienen el potencial suficiente para su aplicación en la industria"]
[null,null,null,null,"Plan de protección","Análisis inicial que permita asegurar que la tecnología, los componentes, la información… se protegen adecuadamente. Debe permitir conocer qué partes del proyecto deben ser protegidas y orientar acerca de los siguientes pasos."]
[null,null,null,null,"Entorno operativo","La solución ha pasado por un conjunto de tests que representan el entorno operacional esperado en cuanto a aspectos críticos por importancia"]
[null,null,null,null,"Prototipo escalable","Prototipo diseñado de tal forma que sea capaza de demostrar el potencial de una producción a mayor escala utilizando métodos de producción"]
[null,null,null,null,"Entorno de simulación","Recrear un posible entorno operativo para la tecnología o producto en un escenario de laboratorio con condiciones ideales. Esto suele incluir la simulación del entorno o la utilización de datos de entrada al sistema cercanos a los reales, por ejemplo"]
[null,null,null,null,"Especificaciones del sistema","Documento de requisitos que describe en detalle las características funcionales y técnicas de la tecnología o sistema en un entorno productivo, incluyendo entradas, salidas, y los límites ambientales y operacionales."]
[null,null,null,null,"Partner","Entidad colaboradora que asistirá en el proceso de desarrollo o experimentación de la tecnología."]
[null,null,null,null,"Propuesta de valor","Propuesta que concreta por qué un potencial cliente deba pagar por un producto o servicios basado en la solución tecnológica. Debe convencer a este cliente que nuestra propuesta añadirá mayor valor o resolverá su problema de manera más eficiente que soluciones competidoras."]

{"sheet":"1. General","index":3,"n_rows":11,"n_cols":12,"rows_kept":11,"cut":false,"hidden":false,"merged":[[22,5,22,6],[23,5,23,6],[21,5,21,6],[30,3,30,7],[3,3,3,7],[16,5,16,6],[29,5,29,6],[15,3,15,7],[24,5,24,6],[25,5,25,6],[26,5,26,6],[27,5,27,6],[28,5,28,6],[17,5,17,6],[18,5,18,6],[19,5,19,6]]}
[]
[null,null,null,"Estimación grado de desarrollo de la tecnología (Página 1 de 7)"]
[]
[null,null,null,"ASPECTOS BÁSICOS DEL GRADO DE DESARROLLO DE LA TECNOLOGÍA"]
[null,1,null,null,"1-1)","Se conocen los procesos y principios básicos de la tecnología",null,null,null,2,{"$f":"J5-1","v":1},1]
[null,2,null,null,"1-2)","Se ha descrito los conceptos básicos de procesos, equipamiento… necesarios",null,null,null,2,{"$f":"J6-1","v":1},1]
[null,3,null,null,"1-3)","Se ha comenzado a realizar pruebas de equipamiento   , análisis del proceso y prueba de concepto   en un entorno de simulación",null,null,null,2,1,1]
[null,4,null,null,"1-4)","Se ha llevado a cabo un testeo del sistema desarrollado (componentes, materiales...) a nivel de laboratorio    en un entorno de simulación",null,null,null,2,1,1]
[null,6,null,null,"1-5)","El testeo del prototipo/proceso en escala ingenieril   ha sido demostrado en un entorno relevante (cercano a industrial)",null,null,null,2,1,1]
[null,8,null,null,"1-6)","Se ha implementado un plan de protección",null,null,null,2,1,1]
[null,9,null,null,"1-7)","Las especificaciones del sistema  y requisitos   están disponibles en un documento formal",null,null,null,2,1,1]

{"sheet":"2. Mercado","index":4,"n_rows":14,"n_cols":12,"rows_kept":14,"cut":false,"hidden":false,"merged":[[3,3,3,7],[13,7,14,7]]}
[]
[null,null,null,"Estimación grado de desarrollo de la tecnología (Página 2 de 7)"]
[]
[null,null,null,"OPORTUNIDAD DE MERCADO"]
[null,1,null,null,"2-1)","Se ha identificado el problema que la tecnología puede solucionar",null,null,null,2,{"$f":"J5-1","v":1},1]
[null,2,null,null,"2-2)","Tipo de clientes potenciales identifidados",null,null,null,2,{"$f":"J6-1","v":1},1]
[null,3,null,null,"2-3)","Se ha evaluado la oportunidad de mercado   (tamaño del mercado, competidores, barreras de entrada identificadas,...)",null,null,null,2,1,1]
[null,3,null,null,"2-4)","Se ha llevado a cabo un primer análisis de propuesta de valor",null,null,null,2,1,1]
[null,5,null,null,"2-5)","Definición de requisitos y niveles de desempeño óptimos ya definidos para el diseño final",null,null,null,2,1,1]
[null,6,null,null,"2-6)","Se conoce el tipo de entorno en el que se podría comercializar el producto/servicio",null,null,null,2,1,1]
[null,6,null,null,"2-7)","La propuesta de valor basada en nuestra solución se comprende y estamos en disposición de comunicarla",null,null,null,2,1,1]
[null,7,null,null,"2-8)","Se ha identificado un posible partner    para el desarrollo/ experimentación (plan de acción conjunto, roles, inversión conjunta…)",null,null,null,2,1,1]
[null,8,null,null,"2-9)","Primer pago de cliente asegurado",null,null,null,2,{"$f":"J13-1","v":1},1]
[null,9,null,null,"2-10)","Modelo de negocio completamente elaborado y contrastado",null,null,null,2,{"$f":"J14-1","v":1},1]

{"sheet":"3. Desarrollo","index":5,"n_rows":29,"n_cols":12,"rows_kept":29,"cut":false,"hidden":false,"merged":[[4,3,4,7]]}
[]
[]
[null,null,null,"Estimación grado de desarrollo de la tecnología (Página 3 de 7)"]
[]
[null,null,null,"DISEÑO Y DESARROLLO"]
[null,1,null,null,"3-1)","La base científico-tecnológica necesaria para el desarrollo se ha identificado y definido",null,null,null,2,{"$f":"J6-1","v":1},1]
[null,1,null,null,"3-2)","Se han identificado las capacidades de I+D necesarias para el desarrollo",null,null,null,2,{"$f":"J7-1","v":1},1]
[null,2,null,null,"3-3)","Se ha identificado el diseño teórico de la solución, incluyendo elementos básicos de la tecnología y un análisis inicial de las funcionalidades",null,null,null,2,1,1]
[null,3,null,null,"3-4)","Se ha realizado un análisis preliminar para asegurar que la validación o comercialización del posible producto no infringe derechos de PI",null,null,null,2,1,1]
[null,3,null,null,"3-5)","Se ha valorado y avanzado en una posible estrategia de PI",null,null,null,2,1,1]
[null,3,null,null,"3-6)","Se ha iniciado un diseño preliminar de ingeniería, así como el diseño de primeros prototipos de componentes",null,null,null,2,1,1]
[null,4,null,null,"3-7)","Posibilidad de producir prototipos escalables    (mayores que a escala de laboratorio), ya sea con recursos propios o con posible financiación",null,null,null,2,1,1]
[null,4,null,null,"3-8)","Diseño conceptual desarrollado y documentado",null,null,null,2,1,1]
[null,4,null,null,"3-9)","Se han identificado inicialmente los costes fundamentales para el desarrollo",null,null,null,2,1,1]
[null,5,null,null,"3-10)","Se ha implementado una estrategia de PI (solicitud de patente, secreto industrial…)",null,null,null,2,{"$f":"J15-1","v":1},1]
[null,5,null,null,"3-11)","Iniciado el diseño preliminar de ingeniería de la solución; creados prototipos de componentes",null,null,null,2,1,1]
[null,5,null,null,"3-12)","Estimación preliminar de costes del posible producto comercial ",null,null,null,2,1,1]
[null,6,null,null,"3-13)","Se ha completado una descripción detallada de la invención (aspectos funcionales, datos…)",null,null,null,2,{"$f":"J18-1","v":1},1]
[null,6,null,null,"3-14)","Si aplica, se ha desarrollado una versión alpha del software",null,null,null,2,1,1]
[null,6,null,null,"3-15)","Un sistema a escala ingenieril ya reproduce con fiabilidad la operativa y funcionalidad de la solución",null,null,null,2,1,1]
[null,6,null,null,"3-16)","Se han determinado los límites operacionales   de la solución",null,null,null,2,1,1]
[null,7,null,null,"3-17)","Si aplica, se han escrito las reivindicaciones de la patente",null,null,null,2,{"$f":"J22-1","v":1},1]
[null,7,null,null,"3-18)","El diseño final de la solución está en marcha y prácticamente completo (identificados materiales, procesos, métodos, técnicas de diseño…)",null,null,null,2,1,1]
[null,7,null,null,"3-19)","Se han validado los objetivos de costes estimados inicialmente",null,null,null,2,1,1]
[null,8,null,null,"3-20)","Si aplica, se ha desarrollado una versión beta del software",null,null,null,2,1,1]
[null,8,null,null,"3-21)","La solución es funcionalmente compatible    con otros sistemas necesarios y su entorno operacional",null,null,null,2,1,1]
[null,8,null,null,"3-22)","Si aplica, se ha completado la solicitud de protección por patente",null,null,null,2,{"$f":"J27-1","v":1},1]
[null,9,null,null,"3-23)","Si aplica, se ha solicitado la extensión internacional de PI (PCT, EPO, solicitud de protección en países…)",null,null,null,2,{"$f":"J28-1","v":1},1]
[null,9,null,null,"3-24)","La tecnología ha alcanzado su grado de desarrollo final a nivel técnico",null,null,null,2,1,1]

{"sheet":"4. Integracion","index":6,"n_rows":8,"n_cols":12,"rows_kept":8,"cut":false,"hidden":false,"merged":[[3,3,3,7],[8,3,8,7],[13,5,13,6],[15,5,15,6],[16,3,16,7],[14,5,14,6],[11,5,11,6],[10,5,10,6]]}
[]
[null,null,null,"Estimación grado de desarrollo de la tecnología (Página 4 de 7)"]
[]
[null,null,null,"INTEGRACIÓN"]
[null,2,null,null,"4-1)","Los componentes individuales de la solución tecnológica funcionan (sin intento real de integración)",null,null,null,2,{"$f":"J5-1","v":1},1]
[null,4,null,null,"4-2)","Se dispone de los componentes integrados en un sistema a escala laboratorio    ; los análisis de integración han comenzado",null,null,null,2,{"$f":"J6-1","v":1},1]
[null,5,null,null,"4-3)","La integración de módulos/funciones se ha demostrado en entorno de laboratorio ",null,null,null,2,1,1]
[null,8,null,null,"4-4)","El prototipo totalmente integrado ha sido demostrado en un entorno real o simulado   u operacional",null,null,null,2,1,1]

{"sheet":"5. Experimentacion","index":7,"n_rows":17,"n_cols":12,"rows_kept":17,"cut":false,"hidden":false,"merged":[[23,5,23,6],[24,5,24,6],[26,3,26,7],[22,5,22,6],[2,3,2,7],[19,5,19,6],[20,5,20,6],[3,3,3,7]]}
[]
[null,null,null,"Estimación grado de desarrollo de la tecnología (Página 5 de 7)"]
[]
[null,null,null,"EXPERIMENTACIÓN Y VALIDACIÓN"]
[null,1,null,null,"5-1)","Los conceptos básicos de la experimentación a realizar se conocen y la experimentación es posible",null,null,null,2,{"$f":"J5-1","v":1},1]
[null,2,null,null,"5-2)","Existen referencias previas que demuestran que la experimentación es posible y los elementos tecnológicos necesarios se han identificado",null,null,null,2,{"$f":"J6-1","v":1},1]
[null,3,null,null,"5-3)","Experimentos preliminares de laboratorio verifican la viabilidad, pero todavía no a nivel de componentes/elementos/partes del sistema",null,null,null,2,1,1]
[null,4,null,null,"5-4)","Experimientos de laboratorio demuestran que los componentes funcionan juntos y prueban una funcionalidad básica en entorno simulado ",null,null,null,2,1,1]
[null,5,null,null,"5-5)","Los requisitos para la verificación de la tecnología se han establecido, a modo banco de pruebas, incluyendo las pruebas y la validación de pruebas de seguridad (si aplica)",null,null,null,2,1,1]
[null,5,null,null,"5-6)","Se han completado pruebas a escala de laboratorio   utilizando prototipo y los resultados validan el diseño; es posible pasar a experimentaciones en entornos relevantes cercanos a entornos operativos",null,null,null,2,1,1]
[null,6,null,null,"5-7)","Los prototipos se han testado en un entorno relevante bajo condiciones simuladas",null,null,null,2,{"$f":"J11-1","v":1},1]
[null,6,null,null,"5-8)","El prototipo es capaz de demostrar todas las posibles funcionalidades del producto final",null,null,null,2,1,1]
[null,7,null,null,"5-9)","Se han completado pruebas de funcionamiento de la tecnología en un entorno relevante",null,null,null,2,1,1]
[null,8,null,null,"5-10)","La viabilidad  a nivel de ingeniería se ha demostrado completamente",null,null,null,2,1,1]
[null,8,null,null,"5-11)","La tecnología ya se ha implementado en el entorno operacional previsto",null,null,null,2,1,1]
[null,9,null,null,"5-12)","La tecnología demuestra las funcionalidad previstas en el diseño conceptual",null,null,null,2,1,1]
[null,9,null,null,"5-13)","Se ha alcanzado con éxito el nivel operativo previsto máximo   para la solución",null,null,null,2,1,1]

{"sheet":"6. Seguridad","index":8,"n_rows":8,"n_cols":12,"rows_kept":8,"cut":false,"hidden":false,"merged":[[2,3,2,7],[3,3,3,7]]}
[]
[null,null,null,"Estimación grado de desarrollo de la tecnología (Página 6 de 7)"]
[]
[null,null,null,"SEGURIDAD"]
[null,3,null,null,"6-1)","Se ha comenzado a identificar los procesos clave, requisitos de seguridad y posibles contingencias asociadas (normativa, estándares,..)",null,null,null,2,{"$f":"J5-1","v":1},1]
[null,4,null,null,"6-2)","Se ha completado una evaluación preliminar de contingencias/riesgos; una estrategia de control de riesgos está siendo explorada",null,null,null,2,1,1]
[null,6,null,null,"6-3)","Se han definido parámetros y controles de seguridad; demos de integración realizados, incluyendo validaciones de seguridad",null,null,null,2,1,1]
[null,8,null,null,"6-4)","Se han identificado y mitigado efectos adversos sobre aspectos de seguridad",null,null,null,2,1,1]

{"sheet":"7. Produccion","index":9,"n_rows":15,"n_cols":12,"rows_kept":15,"cut":false,"hidden":false,"merged":[[2,3,2,7],[24,3,24,7],[17,5,17,6],[18,5,18,6],[3,3,3,7],[22,5,22,6],[21,5,21,6],[19,5,19,6],[23,5,23,6]]}
[]
[null,null,null,"Estimación grado de desarrollo de la tecnología (Página 7 de 7)"]
[]
[null,null,null,"PRODUCCIÓN (GENERACIÓN PRODUCTO/SERVICIO FINAL)"]
[null,3,null,null,"7-1) ","Se ha empezado a analizar cómo determinar el proceso productivo del producto/servicio basado en la tecnología",null,null,null,2,{"$f":"J5-1","v":1},1]
[null,4,null,null,"7-2)","Aspectos claves de los posibles procesos de producción identificados y evaluadas en el entorno del laboratorio",null,null,null,2,{"$f":"J6-1","v":1},1]
[null,5,null,null,"7-3)","Los aspectos necesarios para pasar del laboratorio    a una fase de ingeniería  se entienden y estamos en disposición de resolverlos",null,null,null,2,1,1]
[null,6,null,null,"7-4)","Los aspectos de escalado desde el nivel de ingeniería al siguiente de producción se entienden y estamos en disposición de resolverlos",null,null,null,2,1,1]
[null,6,null,null,"7-5)","Los procesos críticos de producción se han prototipado y las cuestiones de escalado que se requieren están indentificadas y entendidas",null,null,null,2,1,1]
[null,7,null,null,"7-6)","En general se entienden los posibles procesos de producción",null,null,null,2,1,1]
[null,7,null,null,"7-7)","La planificación de la posible producción ya se ha realizado",null,null,null,2,1,1]
[null,8,null,null,"7-8)","Materiales, procesos y procedimientos de producción inicialmente comprobados; todo listo para una producción a mayor escala",null,null,null,2,1,1]
[null,8,null,null,"7-9)","Los aspectos de producción se han identificado y los principales están resueltos",null,null,null,2,1,1]
[null,9,null,null,"7-10)","Las demostraciones de producción se han realizado",null,null,null,2,1,1]
[null,9,null,null,"7-11)","La producción es estable",null,null,null,2,1,1]

{"sheet":"RESULTADOS","index":10,"n_rows":104,"n_cols":33,"rows_kept":104,"cut":false,"hidden":false,"merged":[[44,10,44,21],[83,15,83,18],[43,3,43,4],[36,8,36,9],[45,3,45,4],[47,3,47,4],[46,3,46,4],[44,3,44,4],[44,5,44,7],[44,8,44,9],[42,3,42,4],[41,3,41,4],[48,3,48,4],[59,3,59,4],[54,3,54,4],[55,3,55,4],[27,3,27,4],[39,3,39,4],[40,3,40,4],[23,3,23,21],[16,9,18,21],[24,8,24,9],[24,5,24,7],[24,3,24,4],[30,3,30,4],[29,3,29,4],[28,3,28,4],[34,8,34,9],[30,8,30,9],[28,8,28,9],[7,9,7,17],[42,8,42,9],[40,8,40,9],[24,10,24,21],[9,9,9,17],[20,9,20,10],[12,9,12,17],[14,9,14,17],[20,16,20,21],[95,15,95,18],[63,11,63,18],[63,3,63,10],[64,11,64,14],[69,11,69,14],[75,11,75,14],[92,11,92,14],[84,11,84,14],[64,3,64,6],[77,7,77,10],[82,7,82,10],[79,3,79,6],[64,7,64,10],[69,7,69,10],[72,3,72,6],[49,3,49,4],[50,3,50,4],[51,3,51,4],[25,3,25,4],[26,8,26,9],[35,3,35,4],[36,3,36,4],[37,3,37,4],[38,3,38,4],[38,8,38,9],[26,3,26,4],[31,3,31,4],[32,3,32,4],[33,3,33,4],[34,3,34,4],[32,8,32,9],[52,3,52,4],[53,3,53,4],[62,3,62,18],[56,8,56,9],[58,8,58,9],[56,3,56,4],[57,3,57,4],[58,3,58,4],[46,8,46,9],[48,8,48,9],[50,8,50,9],[64,15,64,18],[75,15,75,18],[52,8,52,9],[54,8,54,9]]}
[]
[null,null,"Volver a:"]
[null,null,"Realizar informe:",null,null,null,null,null,null,null,null,null,null,null,null,null,null,null,null,"Ir a Glosario:"]
[]
[null,null,null,null,null,null,null,null,null,null,null,null,null,null,null,null,null,null,null,null,null,null,null,null,null,0.89,0.79,0.6,0.7]
[null,null,null,"Grado de desarrollo de tecnología (TRL) - Resultados"]
[]
[null,null,null,"Investigador",null,null,null,null,null,{"$f":"IF(ISBLANK(Perfil!C6),\"Introducir info. en la hoja 'Perfil'\", Perfil!C6)","v":"Introducir info. en la hoja 'Perfil'"},null,null,null,null,null,null,null,null,null,null,null,null,null,null,null,{"$f":"IF(ISBLANK(companyname),0, 1)","v":0}]
[]
[null,null,null,"Grupo I+D / Centro I+D",null,null,null,null,null,{"$f":"IF(ISBLANK(Perfil!C8),\"Introducir info. en la hoja 'Perfil'\", Perfil!C8)","v":"Introducir info. en la hoja 'Perfil'"},null,null,null,null,null,null,null,null,null,null,null,null,null,null,null,{"$f":"IF(ISBLANK(streetaddress),0, 1)","v":0}]
[]
[]
[null,null,null,"Teléf. de contacto",null,null,null,null,null,{"$f":"IF(ISBLANK(Perfil!C10),\"Introducir info. en la hoja 'Perfil'\", Perfil!C10)","v":"Introducir info. en la hoja 'Perfil'"},null,null,null,null,null,null,null,null,null,null,null,null,null,null,null,{"$f":"IF(ISBLANK(phone),0, 1)","v":0},null,null,null,null,null,null,"EQUIVALENCIA NIVELES TRL / NIVEL DESARROLLO"]
[]
[null,null,null,"E-mail",null,null,null,null,null,{"$f":"IF(ISBLANK(Perfil!C12),\"Introducir info. en la hoja 'Perfil'\", Perfil!C12)","v":"Introducir info. en la hoja 'Perfil'"},null,null,null,null,null,null,null,null,null,null,null,null,null,null,null,{"$f":"IF(ISBLANK(email),0, 1)","v":0},null,null,null,null,null,1,"concepto"]
[]
[null,null,null,"Descripción de la tecnología:",null,null,null,null,null,{"$f":"IF(ISBLANK(Perfil!C14), \"Introducir info. en la hoja 'Perfil'\",Perfil!C14)","v":"Introducir info. en la hoja 'Perfil'"},null,null,null,null,null,null,null,null,null,null,null,null,null,null,null,{"$f":"IF(ISBLANK(techdescrip),0, 1)","v":0},null,null,null,null,null,2.2999999999999998,"investigación"]
[null,null,null,null,null,null,null,null,null,null,null,null,null,null,null,null,null,null,null,null,null,null,null,null,null,null,null,null,null,null,null,4.5,"prototipo-lab"]
[null,null,null,null,null,null,null,null,null,null,null,null,null,null,null,null,null,null,null,null,null,null,null,null,null,null,null,null,null,null,null,6.7,"prototipo-industrial"]
[]
[null,null,null,"Nivel TRL conseguido:",null,null,null,null,null,{"$f":"IF(I43>AC5,\"9\",IF(I41>AC5,\"8\",IF(I39>AC5,\"7\",IF(I37>AB5,\"6\",IF(I35>AC5,\"5\",IF(I33>AB5,\"4\",IF(I31>AB5,\"3\",IF(I29>AA5,\"2\",IF(I27>AA5,\"1\",\"0\")))))))))","v":"9"},null,null,"Nivel desarrollo:",null,null,null,{"$f":"IF(I43>AC5,\"Producción\",IF(I41>AC5,\"Producción\",IF(I39>AC5,\"Prototipo-industrial\",IF(I37>AB5,\"Prototipo-industrial\",IF(I35>AC5,\"Prototipo-lab\",IF(I33>AB5,\"Prototipo-lab\",IF(I31>AB5,\"Investigación\",IF(I29>AA5,\"Investigación\",IF(I27>AA5,\"Concepto\",\"0\")))))))))","v":"Producción"},null,null,null,null,null,null,null,null,null,null,null,null,null,null,8.9,"producción"]
[]
[]
[null,null,null,"Resultados del cálculo del grado de desarrollo (TRL)"]
[null,null,null,"TRL",null,"Respuestas contestadas \"Sí\"",null,null,"% Completado",null,"Nivel de progreso"]
[]
[null,null,null,"1)",null,{"$f":"COUNTIF('1. General'!J5,2)+COUNTIF('2. Mercado'!J5,2)+COUNTIF('3. Desarrollo'!J6:J7,2)+COUNTIF('5. Experimentacion'!J5:J5,2)","v":5},"de",{"$f":"COUNT('1. General'!L5,'2. Mercado'!L5,'3. Desarrollo'!L6:L7,'5. Experimentacion'!L5:L5)","v":5},{"$f":"F27/H27","v":1}]
[]
[null,null,null,"2)",null,{"$f":"COUNTIF('1. General'!J6,2)+COUNTIF('2. Mercado'!J6,2)+COUNTIF('3. Desarrollo'!J8:J8,2)+COUNTIF('4. Integracion'!J5,2)+COUNTIF('5. Experimentacion'!J6:J6,2)","v":5},"de",{"$f":"COUNT('1. General'!L6,'2. Mercado'!L6,'3. Desarrollo'!L8:L8,'4. Integracion'!L5,'5. Experimentacion'!L6:L6)","v":5},{"$f":"F29/H29","v":1}]
[]
[null,null,null,"3)",null,{"$f":"COUNTIF('1. General'!J7,2)+COUNTIF('2. Mercado'!J7:J8,2)+COUNTIF('3. Desarrollo'!J9:J11,2)+COUNTIF('5. Experimentacion'!J7:J7,2)+COUNTIF('6. Seguridad'!J5,2)+COUNTIF('7. Produccion'!J5:J5,2)","v":9},"de",{"$f":"COUNT('1. General'!L7,'2. Mercado'!L7:L8,'3. Desarrollo'!L9:L11,'5. Experimentacion'!L7:L7,'6. Seguridad'!L5,'7. Produccion'!L5:L5)","v":9},{"$f":"F31/H31","v":1}]
[]
[null,null,null,"4)",null,{"$f":"COUNTIF('1. General'!J8,2)+COUNTIF('3. Desarrollo'!J12:J14,2)+COUNTIF('4. Integracion'!J6:J6,2)+COUNTIF('5. Experimentacion'!J8:J8,2)+COUNTIF('6. Seguridad'!J6,2)+COUNTIF('7. Produccion'!J6:J6,2)","v":8},"de",{"$f":"COUNT('1. General'!L8,'3. Desarrollo'!L12:L14,'4. Integracion'!L6:L6,'5. Experimentacion'!L8:L8,'6. Seguridad'!L6,'7. Produccion'!L6:L6)","v":8},{"$f":"F33/H33","v":1}]
[]
[null,null,null,"5)",null,{"$f":"COUNTIF('2. Mercado'!J9,2)+COUNTIF('3. Desarrollo'!J15:J17,2)+COUNTIF('4. Integracion'!J7:J7,2)+COUNTIF('5. Experimentacion'!J9:J10,2)+COUNTIF('7. Produccion'!J7:J7,2)","v":8},"de",{"$f":"COUNT('2. Mercado'!L9,'3. Desarrollo'!L15:L17,'4. Integracion'!L7:L7,'5. Experimentacion'!L9:L10,'7. Produccion'!L7:L7)","v":8},{"$f":"F35/H35","v":1}]
[]
[null,null,null,"6)",null,{"$f":"COUNTIF('1. General'!J9,2)+COUNTIF('2. Mercado'!J10:J11,2)+COUNTIF('3. Desarrollo'!J18:J21,2)+COUNTIF('5. Experimentacion'!J11:J12,2)+COUNTIF('6. Seguridad'!J7:J7,2)+COUNTIF('7. Produccion'!J8:J9,2)","v":12},"de",{"$f":"COUNT('1. General'!L9,'2. Mercado'!L10:L11,'3. Desarrollo'!L18:L21,'5. Experimentacion'!L11:L12,'6. Seguridad'!L7:L7,'7. Produccion'!L8:L9)","v":12},{"$f":"F37/H37","v":1}]
[]
[null,null,null,"7)",null,{"$f":"COUNTIF('2. Mercado'!J12,2)+COUNTIF('3. Desarrollo'!J22:J24,2)+COUNTIF('5. Experimentacion'!J13:J13,2)+COUNTIF('7. Produccion'!J10:J11,2)","v":7},"de",{"$f":"COUNT('2. Mercado'!L12,'3. Desarrollo'!L22:L24,'5. Experimentacion'!L13:L13,'7. Produccion'!L10:L11)","v":7},{"$f":"F39/H39","v":1}]
[]
[null,null,null,"8)",null,{"$f":"COUNTIF('1. General'!J10:J10,2)+COUNTIF('2. Mercado'!J13,2)+COUNTIF('3. Desarrollo'!J25:J27,2)+COUNTIF('4. Integracion'!J8,2)+COUNTIF('5. Experimentacion'!J14:J15,2)+COUNTIF('6. Seguridad'!J8:J8,2)+COUNTIF('7. Produccion'!J12:J13,2)","v":11},"de",{"$f":"COUNT('1. General'!L10:L10,'2. Mercado'!L13,'3. Desarrollo'!L25:L27,'4. Integracion'!L8,'5. Experimentacion'!L14:M15,'6. Seguridad'!L8:L8,'7. Produccion'!L12:L13)","v":11},{"$f":"F41/H41","v":1}]
[]
[null,null,null,"9)",null,{"$f":"COUNTIF('1. General'!J11:J11,2)+COUNTIF('2. Mercado'!J14,2)+COUNTIF('3. Desarrollo'!J28:J29,2)+COUNTIF('5. Experimentacion'!J16:J17,2)+COUNTIF('7. Produccion'!J14:J15,2)","v":8},"de",{"$f":"COUNT('1. General'!L11:L11,'2. Mercado'!L14,'3. Desarrollo'!L28:L29,'5. Experimentacion'!L16:L17,'7. Produccion'!L14:L15)","v":8},{"$f":"F43/H43","v":1}]
[]
[null,null,null,"Categoría",null,"Respuestas contestadas \"Sí\"",null,null,"% Completado",null,"Nivel de progreso"]
[]
[null,null,null,"1. General",null,{"$f":"COUNTIF('1. General'!J5:J11,2)","v":7},"de",{"$f":"COUNT('1. General'!J5:J11)","v":7},{"$f":"F47/H47","v":1}]
[]
[null,null,null,"2. Mercado",null,{"$f":"COUNTIF('2. Mercado'!J5:J14, 2)","v":10},"de",{"$f":"COUNT('2. Mercado'!$J$5:$J$14)","v":10},{"$f":"F49/H49","v":1}]
[]
[null,null,null,"3. Desarrollo",null,{"$f":"COUNTIF('3. Desarrollo'!J6:J29, 2)","v":24},"de",{"$f":"COUNT('3. Desarrollo'!J6:J29)","v":24},{"$f":"F51/H51","v":1}]
[]
[null,null,null,"4. Integración",null,{"$f":"COUNTIF('4. Integracion'!J5:J8, 2)","v":4},"de",{"$f":"COUNT('4. Integracion'!J5:J8)","v":4},{"$f":"F53/H53","v":1}]
[]
[null,null,null,"5. Experiment. ",null,{"$f":"COUNTIF('5. Experimentacion'!J5:J17, 2)","v":13},"de",{"$f":"COUNT('5. Experimentacion'!J5:J17)","v":13},{"$f":"F55/H55","v":1}]
[]
[null,null,null,"6. Seguridad",null,{"$f":"COUNTIF('6. Seguridad'!J5:J8, 2)","v":4},"de",{"$f":"COUNT('6. Seguridad'!$J$5:$J$8)","v":4},{"$f":"F57/H57","v":1}]
[]
[null,null,null,"7. Producción",null,{"$f":"COUNTIF('7. Produccion'!$J$5:$J$15, 2)","v":11},"de",{"$f":"COUNT('7. Produccion'!$J$5:$J$15)","v":11},{"$f":"F59/H59","v":1}]
[]
[]
[]
[null,null,null,"Resultados detallados"]
[null,null,null,"Por categoría",null,null,null,null,null,null,null,"Por nivel TRL"]
[null,null,null,"1. General ",null,null,null,"4. Integración",null,null,null,"TRL 1",null,null,null,"TRL 6"]
[null,null,null,"1-1)",{"$f":"IF('1. General'!K5=1,\"Sí\",\"No\")","v":"Sí"},null,null,"4-1)",{"$f":"IF('4. Integracion'!K5=1,\"Sí\",\"No\")","v":"Sí"},null,null,"1-1)",{"$f":"E66","v":"Sí"},"5-1)",{"$f":"I71","v":"Sí"},"1-5)",{"$f":"E70","v":"Sí"},"7-4)",{"$f":"I87","v":"Sí"}]
[null,null,null,"1-2)",{"$f":"IF('1. General'!K6=1,\"Sí\",\"No\")","v":"Sí"},null,null,"4-2)",{"$f":"IF('4. Integracion'!K6=1,\"Sí\",\"No\")","v":"Sí"},null,null,"2-1)",{"$f":"E74","v":"Sí"},null,null,"2-6)",{"$f":"E79","v":"Sí"},"7-5)",{"$f":"I88","v":"Sí"}]
[null,null,null,"1-3)",{"$f":"IF('1. General'!K7=1,\"Sí\",\"No\")","v":"Sí"},null,null,"4-3)",{"$f":"IF('4. Integracion'!K7=1,\"Sí\",\"No\")","v":"Sí"},null,null,"3-1)",{"$f":"E81","v":"Sí"},null,null,"2-7)",{"$f":"G74","v":"Sí"}]
[null,null,null,"1-4)",{"$f":"IF('1. General'!K8=1,\"Sí\",\"No\")","v":"Sí"},null,null,"4-4)",{"$f":"IF('4. Integracion'!K8=1,\"Sí\",\"No\")","v":"Sí"},null,null,"3-2)",{"$f":"E82","v":"Sí"},null,null,"3-13)",{"$f":"G81","v":"Sí"}]
[null,null,null,"1-5)",{"$f":"IF('1. General'!K9=1,\"Sí\",\"No\")","v":"Sí"},null,null,"5. Experimentación",null,null,null,"TRL 2",null,null,null,"3-14)",{"$f":"G82","v":"Sí"}]
[null,null,null,"1-6)",{"$f":"IF('1. General'!K10=1,\"Sí\",\"No\")","v":"Sí"},null,null,"5-1)",{"$f":"IF('5. Experimentacion'!K5=1,\"Sí\",\"No\")","v":"Sí"},"5-8)",{"$f":"IF('5. Experimentacion'!K12=1,\"Sí\",\"No\")","v":"Sí"},"1-2)",{"$f":"E67","v":"Sí"},null,null,"3-15)",{"$f":"G83","v":"Sí"}]
[null,null,null,"1-7)",{"$f":"IF('1. General'!K11=1,\"Sí\",\"No\")","v":"Sí"},null,null,"5-2)",{"$f":"IF('5. Experimentacion'!K6=1,\"Sí\",\"No\")","v":"Sí"},"5-9)",{"$f":"IF('5. Experimentacion'!K13=1,\"Sí\",\"No\")","v":"Sí"},"2-2)",{"$f":"E75","v":"Sí"},null,null,"3-16)",{"$f":"G84","v":"Sí"}]
[null,null,null,"2. Mercado",null,null,null,"5-3)",{"$f":"IF('5. Experimentacion'!K7=1,\"Sí\",\"No\")","v":"Sí"},"5-10)",{"$f":"IF('5. Experimentacion'!K14=1,\"Sí\",\"No\")","v":"Sí"},"3-3)",{"$f":"E83","v":"Sí"},null,null,"5-7)",{"$f":"I77","v":"Sí"}]
[null,null,null,"2-1)",{"$f":"IF('2. Mercado'!K5=1,\"Sí\",\"No\")","v":"Sí"},"2-7)",{"$f":"IF('2. Mercado'!K11=1,\"Sí\",\"No\")","v":"Sí"},"5-4)",{"$f":"IF('5. Experimentacion'!K8=1,\"Sí\",\"No\")","v":"Sí"},"5-11)",{"$f":"IF('5. Experimentacion'!K15=1,\"Sí\",\"No\")","v":"Sí"},"4-1)",{"$f":"I66","v":"Sí"},null,null,"5-8)",{"$f":"K71","v":"Sí"}]
[null,null,null,"2-2)",{"$f":"IF('2. Mercado'!K6=1,\"Sí\",\"No\")","v":"Sí"},"2-8)",{"$f":"IF('2. Mercado'!K12=1,\"Sí\",\"No\")","v":"Sí"},"5-5)",{"$f":"IF('5. Experimentacion'!K9=1,\"Sí\",\"No\")","v":"Sí"},"5-12)",{"$f":"IF('5. Experimentacion'!K16=1,\"Sí\",\"No\")","v":"Sí"},"5-2)",{"$f":"I72","v":"Sí"},null,null,"6-3)",{"$f":"I81","v":"Sí"}]
[null,null,null,"2-3)",{"$f":"IF('2. Mercado'!K7=1,\"Sí\",\"No\")","v":"Sí"},"2-9)",{"$f":"IF('2. Mercado'!K13=1,\"Sí\",\"No\")","v":"Sí"},"5-6)",{"$f":"IF('5. Experimentacion'!K10=1,\"Sí\",\"No\")","v":"Sí"},"5-13)",{"$f":"IF('5. Experimentacion'!K17=1,\"Sí\",\"No\")","v":"Sí"},"TRL 3",null,null,null,"TRL 7"]
[null,null,null,"2-4)",{"$f":"IF('2. Mercado'!K8=1,\"Sí\",\"No\")","v":"Sí"},"2-10)",{"$f":"IF('2. Mercado'!K14=1,\"Sí\",\"No\")","v":"Sí"},"5-7)",{"$f":"IF('5. Experimentacion'!K11=1,\"Sí\",\"No\")","v":"Sí"},null,null,"1-3)",{"$f":"E68","v":"Sí"},"7-1)",{"$f":"I84","v":"Sí"},"2-8)",{"$f":"G75","v":"Sí"}]
[null,null,null,"2-5)",{"$f":"IF('2. Mercado'!K9=1,\"Sí\",\"No\")","v":"Sí"},null,null,"6. Seguridad",null,null,null,"2-3)",{"$f":"E76","v":"Sí"},null,null,"3-17)",{"$f":"G85","v":"Sí"}]
[null,null,null,"2-6)",{"$f":"IF('2. Mercado'!K10=1,\"Sí\",\"No\")","v":"Sí"},null,null,"6-1)",{"$f":"IF('6. Seguridad'!K5=1,\"Sí\",\"No\")","v":"Sí"},null,null,"2-4)",{"$f":"E77","v":"Sí"},null,null,"3-18)",{"$f":"G86","v":"Sí"}]
[null,null,null,"3. Desarrollo",null,null,null,"6-2)",{"$f":"IF('6. Seguridad'!K6=1,\"Sí\",\"No\")","v":"Sí"},null,null,"3-4)",{"$f":"E84","v":"Sí"},null,null,"3-19)",{"$f":"G87","v":"Sí"}]
[null,null,null,"3-1)",{"$f":"IF('3. Desarrollo'!K6=1,\"Sí\",\"No\")","v":"Sí"},"3-13)",{"$f":"IF('3. Desarrollo'!K18=1,\"Sí\",\"No\")","v":"Sí"},"6-3)",{"$f":"IF('6. Seguridad'!K7=1,\"Sí\",\"No\")","v":"Sí"},null,null,"3-5)",{"$f":"E85","v":"Sí"},null,null,"5-9)",{"$f":"K72","v":"Sí"}]
[null,null,null,"3-2)",{"$f":"IF('3. Desarrollo'!K7=1,\"Sí\",\"No\")","v":"Sí"},"3-14)",{"$f":"IF('3. Desarrollo'!K19=1,\"Sí\",\"No\")","v":"Sí"},"6-4)",{"$f":"IF('6. Seguridad'!K8=1,\"Sí\",\"No\")","v":"Sí"},null,null,"3-6)",{"$f":"E86","v":"Sí"},null,null,"7-6)",{"$f":"I89","v":"Sí"}]
[null,null,null,"3-3)",{"$f":"IF('3. Desarrollo'!K8=1,\"Sí\",\"No\")","v":"Sí"},"3-15)",{"$f":"IF('3. Desarrollo'!K20=1,\"Sí\",\"No\")","v":"Sí"},"7. Producción",null,null,null,"5-3)",{"$f":"I73","v":"Sí"},null,null,"7-7)",{"$f":"K84","v":"Sí"}]
[null,null,null,"3-4)",{"$f":"IF('3. Desarrollo'!K9=1,\"Sí\",\"No\")","v":"Sí"},"3-16)",{"$f":"IF('3. Desarrollo'!K21=1,\"Sí\",\"No\")","v":"Sí"},"7-1)",{"$f":"IF('7. Produccion'!K5=1,\"Sí\",\"No\")","v":"Sí"},"7-7)",{"$f":"IF('7. Produccion'!K11=1,\"Sí\",\"No\")","v":"Sí"},"6-1)",{"$f":"I79","v":"Sí"},null,null,"TRL 8"]
[null,null,null,"3-5)",{"$f":"IF('3. Desarrollo'!K10=1,\"Sí\",\"No\")","v":"Sí"},"3-17)",{"$f":"IF('3. Desarrollo'!K22=1,\"Sí\",\"No\")","v":"Sí"},"7-2)",{"$f":"IF('7. Produccion'!K6=1,\"Sí\",\"No\")","v":"Sí"},"7-8)",{"$f":"IF('7. Produccion'!K12=1,\"Sí\",\"No\")","v":"Sí"},"TRL 4",null,null,null,"1-6)",{"$f":"E71","v":"Sí"}]
[null,null,null,"3-6)",{"$f":"IF('3. Desarrollo'!K11=1,\"Sí\",\"No\")","v":"Sí"},"3-18)",{"$f":"IF('3. Desarrollo'!K23=1,\"Sí\",\"No\")","v":"Sí"},"7-3)",{"$f":"IF('7. Produccion'!K7=1,\"Sí\",\"No\")","v":"Sí"},"7-9)",{"$f":"IF('7. Produccion'!K13=1,\"Sí\",\"No\")","v":"Sí"},"1-4)",{"$f":"E69","v":"Sí"},"7-2)",{"$f":"I85","v":"Sí"},"2-9)",{"$f":"G74","v":"Sí"}]
[null,null,null,"3-7)",{"$f":"IF('3. Desarrollo'!K12=1,\"Sí\",\"No\")","v":"Sí"},"3-19)",{"$f":"IF('3. Desarrollo'!K24=1,\"Sí\",\"No\")","v":"Sí"},"7-4)",{"$f":"IF('7. Produccion'!K8=1,\"Sí\",\"No\")","v":"Sí"},"7-10)",{"$f":"IF('7. Produccion'!K14=1,\"Sí\",\"No\")","v":"Sí"},"3-7)",{"$f":"E87","v":"Sí"},null,null,"3-20)",{"$f":"G86","v":"Sí"}]
[null,null,null,"3-8)",{"$f":"IF('3. Desarrollo'!K13=1,\"Sí\",\"No\")","v":"Sí"},"3-20)",{"$f":"IF('3. Desarrollo'!K25=1,\"Sí\",\"No\")","v":"Sí"},"7-5)",{"$f":"IF('7. Produccion'!K9=1,\"Sí\",\"No\")","v":"Sí"},"7-11)",{"$f":"IF('7. Produccion'!K15=1,\"Sí\",\"No\")","v":"Sí"},"3-8)",{"$f":"E88","v":"Sí"},null,null,"3-21)",{"$f":"G87","v":"Sí"}]
[null,null,null,"3-9)",{"$f":"IF('3. Desarrollo'!K14=1,\"Sí\",\"No\")","v":"Sí"},"3-21)",{"$f":"IF('3. Desarrollo'!K26=1,\"Sí\",\"No\")","v":"Sí"},"7-6)",{"$f":"IF('7. Produccion'!K10=1,\"Sí\",\"No\")","v":"Sí"},null,null,"3-9)",{"$f":"E89","v":"Sí"},null,null,"3-22)",{"$f":"G88","v":"Sí"}]
[null,null,null,"3-10)",{"$f":"IF('3. Desarrollo'!K15=1,\"Sí\",\"No\")","v":"Sí"},"3-22)",{"$f":"IF('3. Desarrollo'!K27=1,\"Sí\",\"No\")","v":"Sí"},null,null,null,null,"4-2)",{"$f":"I67","v":"Sí"},null,null,"4-4)",{"$f":"I69","v":"Sí"}]
[null,null,null,"3-11)",{"$f":"IF('3. Desarrollo'!K16=1,\"Sí\",\"No\")","v":"Sí"},"3-23)",{"$f":"IF('3. Desarrollo'!K28=1,\"Sí\",\"No\")","v":"Sí"},null,null,null,null,"5-4)",{"$f":"I74","v":"Sí"},null,null,"5-10)",{"$f":"K73","v":"Sí"}]
[null,null,null,"3-12)",{"$f":"IF('3. Desarrollo'!K17=1,\"Sí\",\"No\")","v":"Sí"},"3-24)",{"$f":"IF('3. Desarrollo'!K29=1,\"Sí\",\"No\")","v":"Sí"},null,null,null,null,"6-2)",{"$f":"I80","v":"Sí"},null,null,"5-11)",{"$f":"I79","v":"Sí"}]
[null,null,null,null,null,null,null,null,null,null,null,"TRL 5",null,null,null,"6-4)",{"$f":"G86","v":"Sí"}]
[null,null,null,null,null,null,null,null,null,null,null,"2-5)",{"$f":"E78","v":"Sí"},null,null,"7-8)",{"$f":"K85","v":"Sí"}]
[null,null,null,null,null,null,null,null,null,null,null,"3-10)",{"$f":"E90","v":"Sí"},null,null,"7-9)",{"$f":"K86","v":"Sí"}]
[null,null,null,null,null,null,null,null,null,null,null,"3-11)",{"$f":"E91","v":"Sí"},null,null,"TRL 9"]
[null,null,null,null,null,null,null,null,null,null,null,"3-12)",{"$f":"E92","v":"Sí"},null,null,"1-7)",{"$f":"E72","v":"Sí"}]
[null,null,null,null,null,null,null,null,null,null,null,"4-3)",{"$f":"I68","v":"Sí"},null,null,"2-10)",{"$f":"G77","v":"Sí"}]
[null,null,null,null,null,null,null,null,null,null,null,"5-5)",{"$f":"I75","v":"Sí"},null,null,"3-23)",{"$f":"G91","v":"Sí"}]
[null,null,null,null,null,null,null,null,null,null,null,"5-6)",{"$f":"I76","v":"Sí"},null,null,"3-24)",{"$f":"G92","v":"Sí"}]
[null,null,null,null,null,null,null,null,null,null,null,"7-3)",{"$f":"I86","v":"Sí"},null,null,"5-12)",{"$f":"K75","v":"Sí"}]
[null,null,null,null,null,null,null,null,null,null,null,null,null,null,null,"5-13)",{"$f":"K76","v":"Sí"}]
[null,null,null,null,null,null,null,null,null,null,null,null,null,null,null,"7-10)",{"$f":"K87","v":"Sí"}]
[null,null,null,null,null,null,null,null,null,null,null,null,null,null,null,"7-11)",{"$f":"K88","v":"Sí"}]